Cogmind - Beta 15 @@@ ROGUE MODE // 2025.08.19 @ 02:27:38 // Winter2019/RPGLIKE Player: Toaster Result: Self-destructed Performance ------------- Evolutions (0) 0 Regions Visited (3) 600 Robots Destroyed (24) 120 Value Destroyed (687) 687 Prototype IDs (0) 0 Alien Tech Used (0) 0 Bonus (0) 0 TOTAL SCORE: 1407 Bonus ------- None Cogmind --------- Core Integrity 176/1000 Matter 300/300 Energy 160/160 System Corruption 0% Temperature Cool (0) Movement Walking (120) Location -8/Scraptown Parts ------- > --- POWER (1) -------- Light Nuclear Core > --- PROPULSION (2) --- Aluminum Leg Aluminum Leg > --- UTILITY (2) ------ Makeshift Light Armor Plating > --- WEAPON (2) ------- Particle Gun Particle Gun > --- INVENTORY (1) ---- Mining Laser Peak State ------------ > --- POWER ------------ Light Nuclear Core > --- PROPULSION ------- Aluminum Leg Aluminum Leg > --- UTILITY ---------- Scrap Shield > --- WEAPON ----------- Particle Gun Particle Gun > --- INVENTORY -------- Mining Laser [Rating: 13] Favorites ----------- Power Light Nuclear Core Engine Ion Engine Power Core Light Nuclear Core Propulsion Aluminum Leg Leg Aluminum Leg Utility Disposable Heat Sink Device Disposable Heat Sink Protection Makeshift Light Armor Plating Weapon Particle Gun Energy Gun Particle Gun Ballistic Gun Assault Rifle Special Weapon Mining Laser Build | -11 -10 -10 -8 ------- Run | Yrd Mat Sub Scr Slots Evolved 3 | 2 . 1 . Power . | . . . . Propulsion 1 | 1 . . . Utility 1 | . . 1 . Weapon 1 | 1 . . . Parts Attached 14 | 5 6 3 . Power 2 | 1 1 . . Engine 1 | 1 . . . Core 1 | . 1 . . Reactor . | . . . . Propulsion 2 | 2 . . . Treads . | . . . . Leg 2 | 2 . . . Wheel . | . . . . Hover . | . . . . Flight . | . . . . Utility 4 | . 2 2 . Device 2 | . 2 . . Storage . | . . . . Processor . | . . . . Hackware . | . . . . Protection 2 | . . 2 . Artifact . | . . . . Weapon 6 | 2 3 1 . Energy Gun 2 | . 2 . . Energy Cannon . | . . . . Ballistic Gun 3 | 2 1 . . Ballistic Cannon . | . . . . Launcher . | . . . . Special Weapon 1 | . . 1 . Impact Weapon . | . . . . Slashing Weapon . | . . . . Piercing Weapon . | . . . . Special Melee Weapon . | . . . . Unidentified Prototypes . | . . . . Parts Lost 1 | . . 1 . Power . | . . . . Propulsion . | . . . . Utility 1 | . . 1 . Weapon . | . . . . Highest Loss Streak 1 | . . 1 . To Critical Strikes . | . . . . Average Backups . | . . 1 1 Power . | . . . . Propulsion . | . . . . Utility . | . . . . Weapon . | . . 1 1 Tool/Special . | . . . . Unused Backups 2 | . 2 . . Power . | . . . . Propulsion . | . . . . Utility . | . . . . Weapon 2 | . 2 . . Tool/Special . | . . . . Average Slot Usage (%) 94 | . 99 88 85 Engine 4 | . 7 . . Core 11 | . 8 14 14 Leg 31 | . 33 29 28 Device 11 | . 15 6 . Protection 2 | . . 6 14 Energy Gun 19 | . 12 28 28 Ballistic Gun 11 | . 20 . . Peak Build Rating 13 | 5 11 13 13 Average Rating 9 | 3 8 11 13 On Entrance 7 | . 5 11 13 Naked Turns . | . . . . Heaviest Build 29 | 8 12 29 15 Greatest Support 30 | 20 20 30 30 Greatest Overweight (x) 2 | 2 . 1 . Average Overweight (x) . | . . . . Largest Inventory Capacity 1 | 1 1 1 1 Average Capacity 1 | 1 1 1 1 Most Carried 1 | . 1 1 1 Average Carried . | . . 1 1 Final Capacity 1 | 1 1 1 1 Final Carried 1 | . 1 1 1 Class Distribution -------------------- 100% | Mutant Dominant Class ---------------- Mutant | -10/Materials Mutant | -10/Subcaves Mutant | -8/Scraptown Resources | -11 -10 -10 -8 ----------- Run | Yrd Mat Sub Scr Matter Collected 600 | 250 310 30 10 Remotely 280 | . 280 . . Salvage Created 974 | . 694 280 . Parts 54 | . 36 18 . Haulers Intercepted 2 | . 2 . . Recyclers Shooed . | . . . . Parts Field Recycled . | . . . . Retrieved Matter . | . . . . Parts Self-Destructed 10 | . . 10 . Prevented . | . . . . Kills | -11 -10 -10 -8 ------- Run | Yrd Mat Sub Scr Combat Hostiles Destroyed 18 | . 11 7 . Guns 18 | . 11 7 . Classes Destroyed 7 | . 6 1 . Hauler 2 | . 2 . . Operator 2 | . 2 . . Watcher 2 | . 2 . . Swarmer 3 | . 3 . . Grunt 7 | . 7 . . Sentry 1 | . . 1 . Subdweller 7 | . 1 6 . Best Kill Streak 6 | . 6 2 . Combat Bots Only 3 | . 3 2 . Max Kills in Single Turn 2 | . 2 1 . Gunslinging . | . . . . Exploded . | . . . . Melee . | . . . . Uniques/NPCs Destroyed . | . . . . Combat | -11 -10 -10 -8 -------- Run | Yrd Mat Sub Scr Hostile Shots Fired 116 | . 55 61 . Missed 35 | . 14 21 . Hits 81 | . 41 40 . Projectile 81 | . 41 40 . Critical Strikes 3 | . 1 2 . Damage Taken 1321 | . 497 824 . Core 980 | . 401 579 . Absorbed by Shields . | . . . . Redirected to Core 742 | . 319 423 . Core Remaining (%) 100 | 100 . . . Volleys Fired 91 | . 59 32 . Largest 2 | . 2 2 . Hottest 130 | . 130 130 . Shots Fired 179 | . 118 61 . Gun 176 | . 118 58 . Cannon . | . . . . Launcher . | . . . . Special 3 | . . 3 . Kinetic 116 | . 116 . . Thermal 63 | . 2 61 . Explosive . | . . . . Electromagnetic . | . . . . Robot Hit Streak 16 | . 16 14 . Robot Miss Streak 6 | . 6 1 . Penetration Max . | . . . . Secondary Targets 1 | . . 1 . Max Gunslinging Chain 1 | . . 1 . Shots Hit Robots 117 | . 69 48 . Core Hits 45 | . 31 14 . Critical Kills . | . . . . Critical Parts Destroyed . | . . . . Critical Strikes 1 | . . 1 . Burn 1 | . . 1 . Melee Attacks . | . . . . Impact . | . . . . Slashing . | . . . . Piercing . | . . . . Sneak Attacks . | . . . . Combat Hostiles . | . . . . Follow-up Attacks . | . . . . Damage Inflicted 1505 | . 752 753 . Guns 1505 | . 752 753 . Cannons . | . . . . Explosions . | . . . . Melee . | . . . . Ramming . | . . . . Kinetic 737 | . 737 . . Thermal 768 | . 15 753 . Explosive . | . . . . Electromagnetic . | . . . . Impact . | . . . . Slashing . | . . . . Piercing . | . . . . Highest Corruption . | . . . . Average Corruption . | . . . . Corruption Purged . | . . . . Corruption Blocked . | . . . . Overload Shots . | . . . . Overflow Damage . | . . . . Projectiles . | . . . . Explosions . | . . . . Melee . | . . . . Knockbacks . | . . . . Impact . | . . . . Kinetic . | . . . . Secondary . | . . . . Self-Inflicted Damage . | . . . . Shots . | . . . . Rammed . | . . . . Targets Rammed . | . . . . Kicked . | . . . . Crushed . | . . . . Highest Temperature 171 | . 75 171 . Average Temperature 48 | . 16 63 . Received Heat Transfer 456 | . 273 183 . Siege Activations . | . . . . Martial Activations . | . . . . Shielding Activations . | . . . . Robots Disrupted . | . . . . Combat Hostiles . | . . . . Robots Corrupted . | . . . . Combat Hostiles . | . . . . Parts Fried . | . . . . Impact Corruptions . | . . . . Robots Melted . | . . . . Combat Hostiles . | . . . . Parts Melted 2 | . . 2 . Heat Transferred 1924 | . 37 1887 . Parts Sabotaged . | . . . . Parts Stolen . | . . . . Parts Stripped . | . . . . Power Chain Reactions . | . . . . Alert | -11 -10 -10 -8 ------- Run | Yrd Mat Sub Scr Maximum Alert Level . | . . . . Low Security (%) 100 | 100 100 . . Level 1 . | . . . . Level 2 . | . . . . Level 3 . | . . . . Level 4 . | . . . . Level 5 . | . . . . High Security . | . . . . Max Security . | . . . . Peak Influence 96 | . 96 . . Initial . | . . . . Average 16 | . 16 . . Influence Increases 310 | . 290 20 . Destroy 0b10 Robot/C 220 | . 200 20 . Destroy 0b10 Robot/NC 30 | . 30 . . Destroy Leader 48 | . 48 . . Successful Hack 12 | . 12 . . Influence Decreases 310 | . 290 20 . Time Decay 310 | . 290 20 . Squads Dispatched 2 | . 2 . . Investigation 1 | . 1 . . Extermination . | . . . . Reinforcement 1 | . 1 . . Assault . | . . . . Garrison . | . . . . Intercept . | . . . . Searches Triggered . | . . . . Construction Impeded . | . . . . Haulers Reinforced . | . . . . Active Scanning Responses . | . . . . Cargo Convoy Interrupts . | . . . . Stealth | -11 -10 -10 -8 --------- Run | Yrd Mat Sub Scr Distress Signals . | . . . . Communications Jammed . | . . . . Distress Signals . | . . . . Times Spotted 23 | . 16 7 . Peak Tracking Total 4 | . 4 2 . Tactical Retreats . | . . . . Traps | -11 -10 -10 -8 ------- Run | Yrd Mat Sub Scr Traps Triggered . | . . . . Indirectly . | . . . . Trap Hack Attempts . | . . . . Triggered . | . . . . Disarmed . | . . . . Reprogrammed . | . . . . Reused . | . . . . Traps Extracted . | . . . . Installed . | . . . . Triggered . | . . . . Machines | -11 -10 -10 -8 ---------- Run | Yrd Mat Sub Scr Machines Disabled . | . . . . Max in Single Turn . | . . . . Machines Repaired . | . . . . Machines Dismantled . | . . . . Machines Sabotaged . | . . . . Overloaded Fab Kills . | . . . . Hacking | -11 -10 -10 -8 --------- Run | Yrd Mat Sub Scr Machines Accessed 8 | . 8 . . Terminals 7 | . 7 . . Fabricators . | . . . . Repair Stations . | . . . . Recycling Units 1 | . 1 . . Scanalyzers . | . . . . Garrison Access . | . . . . Total Hacks 14 | . 14 . . Successful 6 | . 6 . . Failed 8 | . 8 . . Catastrophic . | . . . . Database Lockouts . | . . . . Manual 10 | . 10 . . Terminals 12 | . 12 . . Fabricators . | . . . . Repair Stations . | . . . . Recycling Units 2 | . 2 . . Scanalyzers . | . . . . Garrison Access . | . . . . Terminal Hacks . | . . . . Fabricator Hacks . | . . . . Repair Station Hacks . | . . . . Recycling Unit Hacks . | . . . . Scanalyzer . | . . . . Garrison Access Hacks . | . . . . Unauthorized Hacks 6 | . 6 . . Terminals 6 | . 6 . . Botnet 6 | . 6 . . Fabricators . | . . . . Repair Stations . | . . . . Recycling Units . | . . . . Scanalyzers . | . . . . Garrison Access . | . . . . Data Cores Recovered 1 | . 1 . . Used 1 | . 1 . . Hacking Detections 6 | . 6 . . Full Trace Events . | . . . . Feedback Events . | . . . . Feedback Blocked . | . . . . Robot Schematics Acquired . | . . . . Robots Built . | . . . . Authchips . | . . . . Time . | . . . . Total Robot Build Rating . | . . . . Part Schematics Acquired . | . . . . Parts Built . | . . . . Authchips . | . . . . Time . | . . . . Total Part Build Rating . | . . . . Parts Repaired . | . . . . Time . | . . . . Parts Recycled . | . . . . Recycled Matter . | . . . . Retrieved Matter . | . . . . Retrieved Components . | . . . . Parts Scanalyzed . | . . . . Part Schematics Acquired . | . . . . Parts Damaged . | . . . . Bothacking | -11 -10 -10 -8 ------------ Run | Yrd Mat Sub Scr Used RIF Installer . | . . . . Robots Hacked . | . . . . Non-combat . | . . . . Combat . | . . . . Robot Hacks Applied . | . . . . Relay Couplers Released . | . . . . Fabnet Peak Effective % . | . . . . Robots Rewired . | . . . . Allies Hacked . | . . . . Hacks Repelled . | . . . . Allies | -11 -10 -10 -8 -------- Run | Yrd Mat Sub Scr Total Allies . | . . . . Largest Group . | . . . . Highest-Rated Group . | . . . . Highest-Rated Ally . | . . . . Total Orders . | . . . . Ally Attacks . | . . . . Total Damage . | . . . . Kills . | . . . . Allies Corrupted . | . . . . Allies Melted . | . . . . Intel | -11 -10 -10 -8 ------- Run | Yrd Mat Sub Scr Active Infowar (turns) . | . . . . Robot Analysis Total . | . . . . Derelict Logs Recovered 3 | . . 3 . Drone Launches . | . . . . Drone Recoveries . | . . . . Exploration | -11 -10 -10 -8 ------------- Run | Yrd Mat Sub Scr Turns Passed 2438 | 42 1383 979 34 Spaces Moved 1667 | 33 938 668 28 Core 8 | 8 . . . Treads . | . . . . Legs 1659 | 25 938 668 28 Wheels . | . . . . Hover . | . . . . Flight . | . . . . Fastest Speed 50 | 50 120 120 120 Average Speed 119 | 106 120 120 120 Slowest Speed 190 | 150 120 190 120 Overloaded Moves . | . . . . Propulsion Burnouts . | . . . . Robots Hopped . | . . . . Potential Cave-ins . | . . . . Cave-ins Triggered . | . . . . Exploration Rate (%) 30 | 3 94 22 3 Regions Visited 3 Branch Regions 2 Pre-discovered Areas 1 | . . 1 . Known Exits Taken . | . . . . Unknown Exits Taken 3 | 1 1 1 . Scrap Searched 1 | . . . 1 Spaces Dug . | . . . . Terrain Destroyed . | . . . . Melee . | . . . . Projectile . | . . . . AOE . | . . . . Terrain Rammed . | . . . . Walls Destroyed . | . . . . Machines Disabled . | . . . . Actions | -11 -10 -10 -8 --------- Run | Yrd Mat Sub Scr Total 1928 | 37 1087 776 28 Wait 139 | . 73 66 . Move 1664 | 32 937 667 28 Hop . | . . . . Pick Up 3 | . 3 . . Fast Attach 13 | 5 6 2 . Attach . | . . . . Detach . | . . . . Swap 2 | . . 2 . Drop 8 | . 7 1 . Fire 91 | . 59 32 . Melee . | . . . . Ram . | . . . . Kick . | . . . . Crush . | . . . . Escape Stasis . | . . . . Rewire . | . . . . Trap . | . . . . Miscellaneous 8 | . 2 6 . Route ------- -11/Scrapyard -10/Materials (discovered 4 exits: [*Mat x2] / [*Min] / [*Sub]) -10/Subcaves -8/Scraptown History --------- Turn | Location | Event 1 | -11/Scrapyard | Upgraded with Propulsion slot (x1) 1 | -11/Scrapyard | Upgraded with Weapon slot (x1) 16 | -11/Scrapyard | Discovered new exit (range 15) 43 | -11/Scrapyard | Entered Materials 197 | -10/Materials | Discovered new exit (range 7) 287 | -10/Materials | Discovered new exit (range 16) 310 | -10/Materials | Build established: Mutant 457 | -10/Materials | Core integrity fell below 50% 543 | -10/Materials | Derelicts attacked the area 856 | -10/Materials | Discovered new exit (range 11) 1116 | -10/Materials | Discovered new exit (range 9) 1426 | -10/Materials | Entered Subcaves 1427 | -10/Subcaves | Approached by a straggling Scientist 1428 | -10/Subcaves | Reached level 2 1428 | -10/Subcaves | Learned Materials stockpile data 1437 | -10/Subcaves | Learned Materials terminal intel 1791 | -10/Subcaves | Shifting Twisted Machinery released Mak. Light Armor Plating 1796 | -10/Subcaves | Upgraded with Utility slot (x1) 1912 | -10/Subcaves | Core integrity fell below 20% 2273 | -10/Subcaves | Scientist uncovered a shortcut to Scraptown 2405 | -10/Subcaves | Entered Scraptown 2439 | -8/Scraptown | Self-destructed Last Messages --------------- A3-OBB(c): "I think it's somewhere north of here" A3-OBB(c): "We're getting close, I can feel it." 02273_ A3-OBB(c): "Hah, right again, there it is!" 02276_ A3-OBB(c) exits level. LOCATION=UNKNOWN GOAL=ESCAPE 02405_ LOCAL NARROWCAST: Welcome to Scraptown. Please remember it is vital to either disarm yourself or ensure you are corruption-free before entering the area. Use the C-Scrubber! You bear full responsibility for any potential consequences of non-compliance. Enjoy your stay. 02410_ ANNOUNCEMENT: Unclassified nonregistered visitor in outer Scraptown, temporarily sealing HQ gate. 02425_ ANNOUNCEMENT: To all visitors: Defacing our home will be considered a hostile act, tread lightly and respect boundaries. 02428_ Searching scrap... 02428_ Found Imp. Hover Unit. 02428_ Found Battle Rifle. 02428_ Found Trap Scanner. 02428_ Found 67 Matter. 02429_ Acquired 10 matter. Map ----- +----------------------------------------------------+ | ?????????????????????????????????????????????????? | | ?????????????????????????????????????????????????? | | ?????????????????????????????????????????????????? | | ?????????????????????????????????????????????????? | | ?????????????????????????????????????????????????? | | ????????????????????????????????#????????????????? | | ??????????????????????????????? #????????????????? | | ????????????????????#####?????? #????????????????? | | ????????????????????#"""#????? #????????????????? | | ????????????????????#" "#????? #????????????????? | | ????????????????????# #???? #????????????????? | | ????????????????????# ##### #????????????????? | | ????????????????????# ##???????????????? | | ????????????????????# #???????????????? | | ????????????????????# ##???????????????? | | ????????????????????##### ### ##????????????????? | | ????????????????????????# #?????????????????????? | | ???????????????????###### ######????????????????? | | ???????????????????#""""" """""#????????????????? | | ???????????????????#"""%" " "#????????????????? | | ???????????????????#" =![ "#????????????????? | | ???????????????????#""""" """""#????????????????? | | ???????????????????###### ######????????????????? | | ?????????????############ #########"" ??????????? | | ?????????? ????????? | | ?????????? @ ????????? | | ?????????????##"""" """"######"""" """"??????????? | | ????????????????"" """??????? ??????????????? | | ????????????????"" $""???????? ??????????????? | | ????????????????""" ?????????? ?????????????? | | ????????????????"""" ????????????"$?????????????? | | ???????????????????"?????????????????????????????? | | ?????????????????????????????????????????????????? | | | | | | | | | | | | | | | | | | | | | | | | | | | | | | | | | | | +----------------------------------------------------+ Best States ------------- Heat Dissipation 25 Coolant Potential 50 Energy Generation 14 Energy Capacity 250 Matter Stores 300 Matter Capacity 300 Sight Range 16 Terrain Scan Density 10 Armor Coverage 800 Evasion (%) 55 Item Schematics ----------------- None Robot Schematics ------------------ None Fabricated ------------ Nothing Repaired ---------- Nothing Alien Tech Used ----------------- None Achievements -------------- None Challenges ------------ None RPGLIKE | -11 -10 -10 -8 --------- Run | Yrd Mat Sub Scr Levels Raised 1 | . . 1 . XP Earned 5860 | 3000 1260 1100 500 XP Spent 4430 | 1250 1500 1680 . Upgrades 17 | 3 3 11 . Propulsion Slot 1 | 1 . . . Utility Slot 1 | . . 1 . Weapon Slot 1 | 1 . . . Core Integrity 8 | . . 8 . Mass Support 2 | . . 2 . Inventory Capacity 1 | 1 . . . Ranged Accuracy 3 | . 3 . . Protomatter Created 93 | . 10 83 . Integrity Restored 156 | . 30 126 . Core 156 | . 30 126 . Protomatter Decayed 32 | . . 32 . Game ------ Seed MatterMicroRipper Manual? 0 Play Time 00:20:27 Cumulative 123.7 hours Start 2025.08.19 @ 02:07:18 End 2025.08.19 @ 02:27:38 Sessions 1 Manual Loads 0 Difficulty Rogue Special Mode Winter2019/RPGLIKE Game No. 55 Rogue 51 Adventurer 4 Explorer 0 Win Type - Total 1 Types 1/0/0/0/0/0/0/0/0/0 Lore% 58 Gallery% 46 Achievement% 50 Wizard Run 0 Options --------- Layout 0 ASCII 0 Keyboard 0 Movement Arrows Keybinds 0 Fullscreen 2 Font 32/SmallcapsGlow Map View 88x55 Zoom Use 0% Tactical HUD 1 Map Filters NONE Filters NONE Steam 1 RUN: b678693d-f62d-4f1e-91e9-7c79d60d6111